bitfinex-derivatives/quotes_BTCF0:USTF0_20250510
["timestamp","ask_amount","ask_price","bid_price","bid_amount"]
[1746859137643,0.6497089,103830.0,103820.0,0.48230667]
[1746859137843,0.6806089,103830.0,103820.0,0.28969447]
[1746859138144,0.75182333,103830.0,103820.0,0.28969447]
[1746859138343,0.78452333,103830.0,103820.0,0.28969447]
[1746859138845,0.81552333,103830.0,103820.0,0.28969447]
[1746859139243,0.98152333,103830.0,103820.0,0.28969447]
[1746859139438,0.62072333,103830.0,103820.0,0.28969447]
[1746859139957,0.98152333,103830.0,103820.0,0.28969447]
[1746859144048,0.1926307,103810.0,103800.0,0.11833134]
[1746859144254,0.98544513,103810.0,103800.0,0.15123134]
[1746859144553,1.08124513,103810.0,103800.0,0.20026562]
[1746859144750,1.08124513,103810.0,103800.0,0.10394971]
[1746859145256,1.24724513,103810.0,103800.0,0.10794971]
[1746859146869,1.24724513,103810.0,103800.0,0.11194971]
[1746859147157,1.31845956,103810.0,103800.0,0.11194971]
[1746859148950,1.31845956,103810.0,103800.0,0.06094051]
[1746859149156,1.31845956,103810.0,103800.0,1e-08]
[1746859150956,1.32746913,103810.0,103800.0,1e-08]
[1746859151757,1.45738913,103810.0,103800.0,1e-08]
[1746859152160,1.44837956,103810.0,103800.0,1e-08]
[1746859153162,0.1926678,103790.0,103780.0,0.22562]
[1746859153355,0.62468223,103790.0,103780.0,0.22562]
[1746859153556,0.68738223,103790.0,103780.0,0.33669489]
[1746859154165,0.85338223,103790.0,103780.0,0.33669489]
[1746859154359,0.85438223,103790.0,103780.0,0.34169489]
[1746859155881,0.85438223,103790.0,103780.0,0.34769489]
[1746859156077,0.85438223,103790.0,103780.0,0.18487489]
[1746859156285,0.88628223,103790.0,103780.0,0.15397489]
[1746859156484,0.8150678,103790.0,103780.0,0.15397489]
[1746859156782,0.88628223,103790.0,103780.0,0.15397489]
[1746859157285,0.88628223,103790.0,103780.0,0.17407489]
[1746859157582,0.88728223,103790.0,103780.0,0.17407489]
[1746859159484,0.7841678,103790.0,103780.0,0.17407489]
[1746859159672,0.82398223,103790.0,103780.0,0.17407489]
[1746859160077,0.46318223,103790.0,103780.0,0.17407489]
[1746859160278,0.65798223,103790.0,103780.0,0.17407489]
[1746859161481,0.68908223,103790.0,103780.0,0.17407489]
[1746859163079,0.85508223,103790.0,103780.0,0.17407489]
[1746859163487,1.17508223,103790.0,103780.0,0.17407489]
[1746859164385,1.23508223,103790.0,103780.0,0.14297489]
[1746859164580,1.23508223,103790.0,103780.0,0.01474042]
[1746859164781,0.1926864,103780.0,103770.0,0.23972085]
[1746859164989,1.07060083,103780.0,103770.0,0.23972085]
[1746859165184,1.23660083,103780.0,103770.0,0.33607388]
[1746859165686,0.89660083,103780.0,103770.0,0.33607388]
[1746859166189,0.89660083,103780.0,103770.0,0.33807388]
[1746859168281,1.22660083,103780.0,103770.0,0.12627368]
[1746859168479,1.23382083,103780.0,103770.0,0.02992065]
[1746859168889,1.43483526,103780.0,103770.0,0.01570085]
[1746859169090,1.36362083,103780.0,103770.0,0.01871374]
[1746859169788,1.36362083,103780.0,103770.0,0.01771374]
[1746859169990,1.36962083,103780.0,103770.0,0.01771374]
[1746859170684,1.2984064,103780.0,103770.0,0.01771374]
[1746859170988,1.36962083,103780.0,103770.0,0.01771374]
[1746859171189,1.36962083,103780.0,103770.0,0.08071374]
[1746859171389,1.37562083,103780.0,103770.0,0.08071374]
[1746859172384,1.37562083,103780.0,103770.0,0.17607606]
[1746859172385,1.22462083,103780.0,103770.0,0.17607606]
[1746859172586,1.21662083,103780.0,103770.0,0.20647606]
[1746859172784,1.22062083,103780.0,103770.0,0.20647606]
[1746859172986,1.22062083,103780.0,103770.0,0.20346317]
[1746859173189,1.22062083,103780.0,103770.0,0.2175664]
[1746859173388,1.21962083,103780.0,103770.0,0.2175664]
[1746859174589,1.21562083,103780.0,103770.0,0.2175664]
[1746859174892,1.21762083,103780.0,103770.0,0.2175664]
[1746859177293,1.05162083,103780.0,103770.0,0.2175664]
[1746859178093,1.21762083,103780.0,103770.0,0.2175664]
[1746859179093,1.21762083,103780.0,103770.0,0.2205792]
[1746859179695,0.86762083,103780.0,103770.0,0.2205792]
[1746859179895,1.19762083,103780.0,103770.0,0.2205792]
[1746859182500,0.84522083,103780.0,103770.0,0.2205792]
[1746859182797,1.22802083,103780.0,103770.0,0.2205792]
[1746859185096,0.8068064,103780.0,103770.0,0.2205792]
[1746859185302,0.70202083,103780.0,103770.0,0.2205792]
[1746859185491,0.70202083,103780.0,103770.0,0.2175664]
[1746859186499,0.70202083,103780.0,103770.0,0.2078164]
[1746859186902,0.6308064,103780.0,103770.0,0.2078164]
[1746859187104,0.70202083,103780.0,103770.0,0.2175664]
[1746859190301,1.01202083,103780.0,103770.0,0.2175664]
[1746859191001,1.02202083,103780.0,103770.0,0.2175664]
[1746859191195,0.70202083,103780.0,103770.0,0.2175664]
[1746859192493,1.06202083,103780.0,103770.0,0.2175664]
[1746859193895,0.98922083,103780.0,103770.0,0.2175664]
[1746859194091,1.00922083,103780.0,103770.0,0.2175664]
[1746859194297,1.03932083,103780.0,103770.0,0.2175664]
[1746859195601,0.69932083,103780.0,103770.0,0.2175664]
[1746859195801,0.69932083,103780.0,103770.0,0.4102714]
[1746859196099,0.2372064,103780.0,103770.0,0.4102714]
[1746859197806,0.2352064,103780.0,103770.0,0.4102714]
[1746859197997,0.2362064,103780.0,103770.0,0.4102714]
[1746859198197,0.5970064,103780.0,103770.0,0.4102714]
[1746859198506,0.5950064,103780.0,103770.0,0.4102714]
[1746859199708,0.641826,103780.0,103770.0,0.4102714]
[1746859202306,0.2342064,103780.0,103770.0,0.4102714]
[1746859203207,0.2332064,103780.0,103770.0,0.4102714]
[1746859203406,0.2342064,103780.0,103770.0,0.4102714]
[1746859204300,0.2649064,103780.0,103770.0,0.4102714]
[1746859204507,0.2649064,103780.0,103770.0,0.4122714]
[1746859205310,0.2639064,103780.0,103770.0,0.4132714]
[1746859212112,0.2639064,103780.0,103770.0,0.7740714]
[1746859212412,0.2322064,103780.0,103770.0,0.7740714]
[1746859212612,0.279026,103780.0,103770.0,0.7436714]
[1746859212803,0.312126,103780.0,103770.0,0.6726714]
[1746859213007,0.313126,103780.0,103770.0,0.6716714]
[1746859213407,0.313126,103780.0,103770.0,0.6696714]
[1746859213912,0.313126,103780.0,103770.0,0.5401914]
[1746859214107,0.5259456,103780.0,103770.0,0.3831264]
[1746859214310,0.819126,103780.0,103770.0,0.3831264]
[1746859215016,0.819126,103780.0,103770.0,0.5758314]
[1746859215220,0.819126,103780.0,103770.0,0.6062314]
[1746859215713,0.859126,103780.0,103770.0,0.4135264]
[1746859216020,0.9059456,103780.0,103770.0,0.4135264]
[1746859216614,0.5259456,103780.0,103770.0,0.1241664]
[1746859216815,0.8559456,103780.0,103770.0,0.1241664]
[1746859218521,0.789126,103780.0,103770.0,0.1241664]
[1746859218721,0.789126,103780.0,103770.0,0.3473714]
[1746859219224,0.789126,103780.0,103770.0,0.1546664]
[1746859219525,0.4323064,103780.0,103770.0,0.7081714]
[1746859219721,0.4323064,103780.0,103770.0,0.7720714]
[1746859219915,0.8023064,103780.0,103770.0,0.4112714]
[1746859220115,0.313126,103780.0,103770.0,0.4112714]
[1746859220620,0.313126,103780.0,103770.0,0.7720714]
[1746859221025,0.2663064,103780.0,103770.0,0.7720714]
[1746859222217,0.2663064,103780.0,103770.0,0.9015914]
[1746859222416,0.2663064,103780.0,103770.0,0.5407914]
[1746859222617,0.313126,103780.0,103770.0,0.5407914]
[1746859222925,0.313126,103780.0,103770.0,0.9015914]
[1746859225520,0.663126,103780.0,103770.0,0.6781864]
[1746859225714,0.7099456,103780.0,103770.0,0.8376914]
[1746859225928,0.7099456,103780.0,103770.0,0.6449864]
[1746859226133,0.829126,103780.0,103770.0,0.8376914]
[1746859226522,0.829126,103780.0,103770.0,0.8701914]
[1746859227829,0.829126,103780.0,103770.0,0.8376914]
[1746859228029,0.829126,103780.0,103770.0,0.4768914]
[1746859228421,0.829126,103780.0,103770.0,0.8376914]
[1746859228821,0.829126,103780.0,103770.0,0.2536864]
[1746859229030,0.8859456,103780.0,103770.0,0.2536864]
[1746859230331,0.8959456,103780.0,103770.0,0.2536864]
[1746859231533,0.5259456,103780.0,103770.0,0.2536864]
[1746859231734,0.9059456,103780.0,103770.0,0.2536864]
[1746859232226,0.9059456,103780.0,103770.0,0.1241664]
[1746859232432,0.8559456,103780.0,103770.0,0.1241664]
[1746859233730,0.5259456,103780.0,103770.0,0.1241664]
[1746859234136,0.8659456,103780.0,103770.0,0.1241664]
[1746859234345,1.1967456,103780.0,103770.0,0.1241664]
[1746859234630,1.2067456,103780.0,103770.0,0.1241664]
[1746859236638,0.8867456,103780.0,103770.0,0.1241664]
[1746859238138,0.8877456,103780.0,103770.0,0.1241664]
[1746859238640,0.8897456,103780.0,103770.0,0.1241664]
[1746859239237,0.8897456,103780.0,103770.0,0.02780408]
[1746859242940,0.8897456,103780.0,103770.0,0.03081687]
[1746859247144,0.5289456,103780.0,103770.0,0.03081687]
[1746859247337,1.2505456,103780.0,103770.0,0.03081687]
[1746859248343,1.2505456,103780.0,103770.0,0.02106687]
[1746859248645,1.6205456,103780.0,103770.0,0.02106687]
[1746859249241,1.7496656,103780.0,103770.0,0.02106687]
[1746859250049,1.7496656,103780.0,103770.0,0.02106693]
[1746859251244,1.7496656,103780.0,103770.0,0.05106693]
[1746859254437,1.7536656,103780.0,103770.0,0.05106693]
[1746859255248,1.7546656,103780.0,103770.0,0.05206693]
[1746859255947,1.7496656,103780.0,103770.0,0.05106693]
[1746859256150,1.7526656,103780.0,103770.0,0.05106693]
[1746859257252,1.7526656,103780.0,103770.0,0.08206693]
[1746859257253,1.3826656,103780.0,103770.0,0.08206693]
[1746859257446,1.7526656,103780.0,103770.0,0.02106693]
[1746859257651,1.7526656,103780.0,103770.0,0.08256693]
[1746859259052,1.3826656,103780.0,103770.0,0.08256693]
[1746859259252,1.3926656,103780.0,103770.0,0.08256693]
[1746859260259,1.2990264,103780.0,103770.0,0.08256693]
[1746859260444,1.3926656,103780.0,103770.0,0.08256693]
[1746859260645,1.7226656,103780.0,103770.0,0.08256693]
[1746859260845,1.3926656,103780.0,103770.0,0.08256693]
[1746859261053,1.6926656,103780.0,103770.0,0.08256693]
[1746859261244,1.3826656,103780.0,103770.0,0.08256693]
[1746859261444,1.3926656,103780.0,103770.0,0.08256693]
[1746859261852,1.3826656,103780.0,103770.0,0.08256693]
[1746859262052,1.7126656,103780.0,103770.0,0.08256693]
[1746859262551,0.495126,103780.0,103770.0,0.17892925]
[1746859262755,0.772026,103780.0,103770.0,0.17892925]
[1746859262949,0.772026,103780.0,103770.0,0.1759164]
[1746859263152,0.606026,103780.0,103770.0,0.1759164]
[1746859263752,1.0136456,103780.0,103770.0,0.1759164]
[1746859264550,1.0086456,103780.0,103770.0,0.1759164]
[1746859264853,1.0096456,103780.0,103770.0,0.1759164]
[1746859265055,1.0418456,103780.0,103770.0,0.1759164]
[1746859265353,0.7318456,103780.0,103770.0,0.1759164]
[1746859265555,1.1018456,103780.0,103770.0,0.1759164]
[1746859267156,1.1018456,103780.0,103770.0,0.17892923]
[1746859267948,0.2029064,103780.0,103770.0,0.37163423]
[1746859268149,0.2029064,103780.0,103770.0,0.5346214]
[1746859268548,0.2029064,103780.0,103770.0,0.6635414]
[1746859269051,0.1999064,103780.0,103770.0,0.6635414]
[1746859269357,0.246726,103780.0,103770.0,0.6635414]
[1746859270150,0.246726,103780.0,103770.0,1.0243414]
[1746859270455,0.246726,103780.0,103770.0,0.6635414]
[1746859271845,0.276926,103780.0,103770.0,0.6635414]
[1746859272157,0.276926,103780.0,103770.0,0.4975414]
[1746859274357,0.637726,103780.0,103770.0,0.4975414]
[1746859275358,0.7178456,103780.0,103770.0,0.3048364]
[1746859275653,0.7500456,103780.0,103770.0,0.3145864]
[1746859277151,0.9160456,103780.0,103770.0,0.3145864]
[1746859277759,0.8224064,103780.0,103770.0,0.3145864]
[1746859277960,0.9160456,103780.0,103770.0,0.3145864]
[1746859278145,0.7500456,103780.0,103770.0,0.3145864]
[1746859278347,0.7500456,103780.0,103770.0,0.1856664]
[1746859279152,0.9160456,103780.0,103770.0,0.1856664]
[1746859284862,0.9160456,103780.0,103770.0,0.1546664]
[1746859288166,0.9160456,103780.0,103770.0,0.1241664]
[1746859289059,0.9160456,103780.0,103770.0,0.02780408]
[1746859290559,0.9160456,103780.0,103770.0,0.03081689]
[1746859291261,0.92560271,103780.0,103770.0,0.03081689]
[1746859294967,0.92860271,103780.0,103770.0,0.03081689]
[1746859297059,0.97542231,103780.0,103770.0,0.03081689]
[1746859297260,0.92860271,103780.0,103770.0,0.03081689]
[1746859297460,0.92860271,103780.0,103770.0,0.02106689]
[1746859301169,0.9190456,103780.0,103770.0,0.02106689]
[1746859303572,0.92833385,103780.0,103770.0,0.02106689]
[1746859304873,0.97515345,103780.0,103770.0,0.02106689]
[1746859307873,0.92833385,103780.0,103770.0,0.02106689]
[1746859308063,0.92833385,103780.0,103770.0,0.05416689]
[1746859309377,0.93233385,103780.0,103770.0,0.05416689]
[1746859309564,0.93433385,103780.0,103770.0,0.02206689]
[1746859311173,1.28433385,103780.0,103770.0,0.02206689]
[1746859312684,1.33115345,103780.0,103770.0,0.02206689]
[1746859312983,1.28433385,103780.0,103770.0,0.02206689]
[1746859314175,1.28433385,103780.0,103770.0,0.05376689]
[1746859318079,0.92353385,103780.0,103770.0,0.05376689]
[1746859318271,1.64513385,103780.0,103770.0,0.05376689]
[1746859319778,1.64513385,103780.0,103770.0,0.08476689]
[1746859320279,1.6358456,103780.0,103770.0,0.08476689]
[1746859320575,1.6358456,103780.0,103770.0,0.11586689]
[1746859327182,1.6358456,103780.0,103770.0,0.08476689]
[1746859327581,1.6826652,103780.0,103770.0,0.08476689]
[1746859327772,1.6358456,103780.0,103770.0,0.08476689]
[1746859327974,1.75805403,103780.0,103770.0,0.08476689]
[1746859335783,1.80487363,103780.0,103770.0,0.02206689]
[1746859336186,1.80487363,103780.0,103760.0,0.00975]
[1746859336187,0.0481823,103760.0,103740.0,0.15078272]
[1746859336489,1.0079813,103750.0,103740.0,0.31069921]
[1746859336678,1.4399813,103750.0,103740.0,0.31069921]
[1746859336985,1.4399813,103750.0,103740.0,0.21433689]
[1746859337188,1.6059813,103750.0,103740.0,0.22869793]
[1746859337685,1.6059813,103750.0,103740.0,0.22969793]
[1746859338280,0.1927607,103740.0,103730.0,0.22628445]
[1746859338482,1.0198999,103740.0,103730.0,0.25778445]
[1746859339083,1.1858999,103740.0,103730.0,0.25778445]
[1746859340288,1.1858999,103740.0,103730.0,0.25978445]
[1746859341082,1.1858999,103740.0,103730.0,0.0335]
[1746859341596,1.1858999,103740.0,103730.0,0.04816532]
[1746859342095,1.1931199,103740.0,103730.0,0.04816532]
[1746859342394,1.1931199,103740.0,103730.0,0.05016532]
[1746859343789,1.20272508,103740.0,103730.0,0.01866532]
[1746859344093,1.25254468,103740.0,103730.0,0.01466532]
[1746859344292,0.1927979,103720.0,103710.0,0.22619314]
[1746859344492,0.9872371,103720.0,103710.0,0.22619314]
[1746859344693,1.0493371,103720.0,103710.0,0.22619314]
[1746859345092,1.2153371,103720.0,103710.0,0.22619314]
[1746859345797,1.2153371,103720.0,103710.0,0.22819314]
[1746859345990,1.2153371,103720.0,103710.0,0.09995314]
[1746859346294,1.2153371,103720.0,103710.0,0.11421073]
[1746859346908,1.2183371,103720.0,103710.0,0.11421073]
[1746859347192,0.8012175,103720.0,103710.0,0.20862879]
[1746859347394,1.1832175,103720.0,103710.0,0.21790964]
[1746859347695,0.8032175,103720.0,103710.0,0.21790964]
[1746859348196,0.8032175,103720.0,103710.0,0.2116431]
[1746859348197,0.6372175,103720.0,103710.0,0.2116431]
[1746859348398,0.9872175,103720.0,103710.0,0.2116431]
[1746859348788,0.6352175,103720.0,103710.0,0.2116431]
[1746859348989,0.9452175,103720.0,103710.0,0.2116431]
[1746859350092,1.1112175,103720.0,103710.0,0.2116431]
[1746859351199,0.8012175,103720.0,103710.0,0.2116431]
[1746859351397,0.8012175,103720.0,103710.0,0.20862879]
[1746859351584,0.8012175,103720.0,103710.0,0.40445947]
[1746859351785,0.8012175,103720.0,103710.0,0.21164307]
[1746859353400,1.1612175,103720.0,103710.0,0.21164307]
[1746859353600,0.8012175,103720.0,103710.0,0.21164307]
[1746859353993,0.3935979,103720.0,103710.0,0.45127907]
[1746859354195,0.1957979,103720.0,103710.0,0.81207907]
[1746859354594,1.0617371,103720.0,103710.0,0.02122501]
[1746859354796,0.6995175,103720.0,103710.0,0.02122501]
[1746859354994,1.0495175,103720.0,103710.0,0.21224307]
[1746859355194,1.2623371,103720.0,103710.0,0.21224307]
[1746859355395,1.2613371,103720.0,103710.0,0.21324307]
[1746859355592,1.2145175,103720.0,103710.0,0.21324307]
[1746859355896,1.2613371,103720.0,103710.0,0.21324307]
[1746859356092,1.2603371,103720.0,103710.0,0.21324307]
[1746859356600,1.2603371,103720.0,103710.0,0.2132433]
[1746859356798,1.1666979,103720.0,103710.0,0.2122433]
[1746859356994,0.8317175,103720.0,103710.0,0.2122433]
[1746859357390,1.1807175,103720.0,103710.0,0.2122433]
[1746859357595,1.1837175,103720.0,103710.0,0.2132433]
[1746859358906,1.1857175,103720.0,103710.0,0.2132433]
[1746859359501,1.1457175,103720.0,103710.0,0.2132433]
[1746859359805,1.2157175,103720.0,103710.0,0.2132433]
[1746859359993,0.8357175,103720.0,103710.0,0.2132433]
[1746859360190,1.1957175,103720.0,103710.0,0.2132433]
[1746859360394,0.8357175,103720.0,103710.0,0.2132433]
[1746859360595,1.1757175,103720.0,103710.0,0.2132433]
[1746859361910,0.7570979,103720.0,103710.0,0.4528793]
[1746859362102,0.3962979,103720.0,103710.0,0.8136793]
[1746859362403,0.2302979,103720.0,103710.0,0.4528793]
[1746859362601,0.2302979,103720.0,103710.0,0.4060597]
[1746859362805,0.2302979,103720.0,103710.0,0.2132433]
[1746859362806,0.5910979,103720.0,103710.0,0.2132433]
[1746859363005,0.6102979,103720.0,103710.0,0.2132433]
[1746859364201,0.6102979,103720.0,103710.0,0.3411633]
[1746859364501,0.2302979,103720.0,103710.0,0.3411633]
[1746859365099,0.5502979,103720.0,103710.0,0.5071633]
[1746859365406,1.0387175,103720.0,103710.0,0.5071633]
[1746859365593,0.6779175,103720.0,103710.0,0.5071633]
[1746859366206,0.6779175,103720.0,103710.0,0.3411633]
[1746859366505,0.6518979,103720.0,103710.0,0.3411633]
[1746859366706,1.0087175,103720.0,103710.0,0.3411633]
[1746859367097,1.0687175,103720.0,103710.0,0.3411633]
[1746859367299,0.6987175,103720.0,103710.0,0.2132433]
[1746859367498,0.7455371,103720.0,103710.0,0.1186433]
[1746859367700,1.0855371,103720.0,103710.0,0.1186433]
[1746859368300,1.0118979,103720.0,103710.0,0.1186433]
[1746859368508,1.0555371,103720.0,103710.0,0.02222524]
[1746859369213,1.2215371,103720.0,103710.0,0.02222524]
[1746859370105,1.1278979,103720.0,103710.0,0.02222524]
[1746859370312,1.2215371,103720.0,103710.0,0.02222524]
[1746859371209,0.9115371,103720.0,103710.0,0.02222524]
[1746859371605,1.2515371,103720.0,103710.0,0.02222524]
[1746859372312,1.0855371,103720.0,103710.0,0.02222524]
[1746859373010,1.0018979,103720.0,103710.0,0.02222524]
[1746859373313,1.2215371,103720.0,103710.0,0.02222524]
[1746859374106,1.0555371,103720.0,103710.0,0.02222524]
[1746859374911,0.7455371,103720.0,103710.0,0.1186433]
[1746859375113,0.7455371,103720.0,103710.0,0.2101433]
[1746859375114,1.0755371,103720.0,103710.0,0.2101433]
[1746859375611,1.0287175,103720.0,103710.0,0.1797433]
[1746859376112,1.0755371,103720.0,103710.0,0.1186433]
[1746859376303,0.7455371,103720.0,103710.0,0.1186433]
[1746859376508,0.6518979,103720.0,103710.0,0.1186433]
[1746859376713,0.9718979,103720.0,103710.0,0.1186433]
[1746859376919,1.0655371,103720.0,103710.0,0.1186433]
[1746859377309,0.7455371,103720.0,103710.0,0.1186433]
[1746859377607,1.0655371,103720.0,103710.0,0.1186433]
[1746859377814,0.7455371,103720.0,103710.0,0.1186433]
[1746859378003,1.1255371,103720.0,103710.0,0.1186433]
[1746859378205,0.7455371,103720.0,103710.0,0.1186433]
[1746859378609,1.0855371,103720.0,103710.0,0.1186433]
[1746859379105,1.0387175,103720.0,103710.0,0.1186433]
[1746859379309,0.9918979,103720.0,103710.0,0.01921073]
[1746859379804,0.7455371,103720.0,103710.0,0.01921073]
[1746859380013,1.0555371,103720.0,103710.0,0.01921073]
[1746859380215,1.2215371,103720.0,103710.0,0.01921073]
[1746859380508,1.2915371,103720.0,103710.0,0.01921073]
[1746859381017,1.1978979,103720.0,103710.0,0.01921073]
[1746859381315,1.2915371,103720.0,103710.0,0.01921073]
[1746859382008,0.9215371,103720.0,103710.0,0.01921073]
[1746859382216,1.2915371,103720.0,103710.0,0.01921073]
[1746859382405,0.9215371,103720.0,103710.0,0.01921073]
[1746859382607,1.2215371,103720.0,103710.0,0.01921073]
[1746859391118,1.1278979,103720.0,103710.0,0.01921073]
[1746859391320,1.2215371,103720.0,103710.0,0.01921073]
[1746859392823,1.1278979,103720.0,103710.0,0.01921073]
[1746859393011,1.2215371,103720.0,103710.0,0.01921073]
[1746859393207,1.0555371,103720.0,103710.0,0.01921073]
[1746859393407,1.0655371,103720.0,103710.0,0.01921073]
[1746859393613,1.0655371,103720.0,103710.0,0.08391073]
[1746859393918,0.9718979,103720.0,103710.0,0.08391073]
[1746859394125,1.0655371,103720.0,103710.0,0.08391073]
[1746859394513,1.0655371,103720.0,103710.0,0.05241073]
[1746859396023,0.7455371,103720.0,103710.0,0.05241073]
[1746859396320,1.0655371,103720.0,103710.0,0.05241073]
[1746859400526,1.0655371,103720.0,103710.0,0.01921073]
[1746859400719,1.0727671,103720.0,103710.0,0.01921073]
[1746859402322,1.1451279,103720.0,103710.0,0.01921073]
[1746859402526,1.2387671,103720.0,103710.0,0.01921073]
[1746859404327,0.1928164,103710.0,103700.0,0.1]
[1746859404523,1.1046556,103710.0,103700.0,0.1]
[1746859405230,1.1046556,103710.0,103690.0,0.0603]
[1746859405231,0.192835,103700.0,103690.0,0.0603]
[1746859405526,1.0540742,103700.0,103690.0,0.0303]
[1746859406331,1.0540742,103700.0,103690.0,0.04471346]
[1746859407022,1.0540742,103700.0,103690.0,0.01742846]
[1746859408228,1.0570742,103700.0,103690.0,0.01842846]
[1746859408830,1.0580742,103700.0,103690.0,0.01842846]
[1746859409024,0.7580742,103700.0,103690.0,0.01842846]
[1746859409225,1.0680742,103700.0,103690.0,0.01842846]
[1746859409435,1.0680742,103700.0,103690.0,0.04992846]
[1746859410533,0.7480742,103700.0,103690.0,0.04992846]
[1746859410725,1.1280742,103700.0,103690.0,0.04992846]
[1746859412335,0.7580742,103700.0,103690.0,0.04992846]
[1746859412531,1.0780742,103700.0,103690.0,0.04992846]
[1746859412732,0.7580742,103700.0,103690.0,0.04992846]
[1746859412931,1.0780742,103700.0,103690.0,0.04992846]
[1746859415932,0.600535,103700.0,103690.0,0.04992846]
[1746859416231,1.0173546,103700.0,103690.0,0.34396512]
[1746859416432,1.0073546,103700.0,103690.0,0.37546512]
[1746859416922,1.0541742,103700.0,103690.0,0.37546512]
[1746859417128,1.0844742,103700.0,103690.0,0.20946512]
[1746859418429,1.0541742,103700.0,103690.0,0.14636512]
[1746859418735,1.1159742,103700.0,103690.0,0.01842846]
[1746859428340,1.1159742,103700.0,103690.0,0.11512846]
[1746859429746,1.1159742,103700.0,103690.0,0.08352846]
[1746859434835,0.590535,103700.0,103690.0,0.08352846]
[1746859435048,0.970535,103700.0,103690.0,0.21276512]
[1746859435353,1.0173546,103700.0,103690.0,0.37876512]
[1746859435741,1.0641742,103700.0,103690.0,0.37876512]
[1746859436148,1.0641742,103700.0,103690.0,0.21276512]
[1746859439548,0.6841742,103700.0,103690.0,0.21276512]
[1746859441350,0.590535,103700.0,103690.0,0.21276512]
[1746859441549,0.6841742,103700.0,103690.0,0.21276512]
[1746859441850,0.590535,103700.0,103690.0,0.21276512]
[1746859442055,0.6373546,103700.0,103690.0,0.21276512]
[1746859442242,0.6373546,103700.0,103690.0,0.37876512]
[1746859443249,0.6373546,103700.0,103690.0,0.21276512]
[1746859443553,0.9873546,103700.0,103690.0,0.21276512]
[1746859444855,0.940535,103700.0,103690.0,0.21276512]
[1746859445153,0.9873546,103700.0,103690.0,0.21276512]
[1746859445354,0.6373546,103700.0,103690.0,0.21276512]
[1746859447148,0.9773546,103700.0,103690.0,0.21276512]
[1746859447350,0.590535,103700.0,103690.0,0.40561872]
[1746859447552,0.6373546,103700.0,103690.0,0.21276512]
[1746859448157,0.229735,103700.0,103690.0,0.45243832]
[1746859448663,0.229735,103700.0,103690.0,0.58043832]
[1746859449163,0.229735,103700.0,103690.0,0.74643832]
[1746859449362,0.229735,103700.0,103690.0,0.69961872]
[1746859449966,0.204065,103700.0,103690.0,0.79605472]
[1746859450163,0.204065,103700.0,103690.0,0.84287432]
[1746859450558,0.204065,103700.0,103690.0,0.79605472]
[1746859451252,0.235265,103700.0,103690.0,0.79605472]
[1746859451572,0.235265,103700.0,103690.0,0.69961872]
[1746859454977,0.235265,103700.0,103690.0,1.10723832]
[1746859454978,0.204065,103700.0,103690.0,1.10723832]
[1746859456175,0.01123,103700.0,103690.0,1.35723832]
[1746859456371,0.6018359,103710.0,103700.0,0.192835]
[1746859456570,0.6018359,103710.0,103700.0,0.4638146]
[1746859456976,0.6018359,103710.0,103700.0,0.42001]
[1746859456977,0.6335359,103710.0,103700.0,0.42001]
[1746859457279,0.6335359,103710.0,103700.0,0.68244666]
[1746859457880,0.2727359,103710.0,103700.0,1.04324666]
[1746859458079,0.2727359,103710.0,103700.0,1.04023166]
[1746859458575,0.2727359,103710.0,103700.0,1.13665966]
[1746859462681,0.2727359,103710.0,103700.0,1.18347926]
[1746859463082,0.2727359,103710.0,103700.0,1.13665966]
[1746859463472,0.3195555,103710.0,103700.0,1.13665966]
[1746859463682,0.3831555,103710.0,103700.0,1.16815166]
[1746859463981,0.3831555,103710.0,103700.0,0.78319666]
[1746859464178,0.7907751,103710.0,103700.0,0.35231666]
[1746859464377,0.7439555,103710.0,103700.0,0.35231666]
[1746859464579,0.7439555,103710.0,103700.0,0.3553311]
[1746859465276,0.9099555,103710.0,103700.0,0.3553311]
[1746859466184,0.7439555,103710.0,103700.0,0.2274111]
[1746859466587,1.1039555,103710.0,103700.0,0.2274111]
[1746859468279,1.1039555,103710.0,103700.0,0.0994511]
[1746859468478,1.1039555,103710.0,103700.0,0.2274111]
[1746859470091,1.2699555,103710.0,103700.0,0.2274111]
[1746859471088,1.1039555,103710.0,103700.0,0.2274111]
[1746859473087,0.7439555,103710.0,103700.0,0.2274111]
[1746859475597,0.7907751,103710.0,103700.0,0.2274111]
[1746859475899,0.7439555,103710.0,103700.0,0.2274111]
[1746859476085,0.9099555,103710.0,103700.0,0.2274111]
[1746859477498,0.8631359,103710.0,103700.0,0.2274111]
[1746859477697,0.9099555,103710.0,103700.0,0.2274111]
[1746859478096,0.7439555,103710.0,103700.0,0.2274111]
[1746859479197,0.9099555,103710.0,103700.0,0.2274111]
[1746859480495,0.9567751,103710.0,103700.0,0.13097444]
[1746859482502,0.9099555,103710.0,103700.0,0.13097444]
[1746859484902,0.5491555,103710.0,103700.0,0.13097444]
[1746859485202,0.9099555,103710.0,103700.0,0.13097444]
[1746859490206,0.7439555,103710.0,103700.0,0.13097444]
[1746859490809,0.7439555,103710.0,103700.0,0.12796]
[1746859491011,0.7439555,103710.0,103700.0,0.13097473]
[1746859492309,0.7511855,103710.0,103700.0,0.16367473]
[1746859492910,0.7511855,103710.0,103700.0,0.03571473]
[1746859497609,0.7511855,103710.0,103700.0,0.00301473]
[1746859498007,0.7980051,103710.0,103700.0,0.00301473]
[1746859498208,0.7980051,103710.0,103700.0,0.03611473]
[1746859499116,0.9640051,103710.0,103700.0,0.00301473]
[1746859500118,0.7980051,103710.0,103700.0,0.00301473]
[1746859502110,0.9640051,103710.0,103700.0,0.00301473]
[1746859502415,1.0918851,103710.0,103700.0,0.00301473]
[1746859502917,0.192835,103700.0,103690.0,0.04611346]
[1746859503214,0.7424742,103700.0,103690.0,0.04611346]
[1746859504016,0.7424742,103700.0,103690.0,0.04811346]
[1746859504316,0.7424742,103700.0,103690.0,0.11581346]
[1746859504818,0.7424742,103700.0,103690.0,0.11882844]
[1746859508021,0.7108742,103700.0,103690.0,0.11882844]
[1746859508722,0.7421742,103700.0,103690.0,0.11882844]
[1746859509425,0.648535,103700.0,103690.0,0.11882844]
[1746859509715,0.7421742,103700.0,103690.0,0.11882844]
[1746859513715,0.6953546,103700.0,103690.0,0.2152651]
[1746859514432,0.6310546,103700.0,103690.0,0.21225012]
[1746859515122,0.6310546,103700.0,103690.0,0.37825012]
[1746859515322,0.6628546,103700.0,103690.0,0.37825012]
[1746859518124,0.7397742,103700.0,103690.0,0.21225012]
[1746859518312,0.6929546,103700.0,103690.0,0.21225012]
[1746859518918,0.6628546,103700.0,103690.0,0.21225012]
[1746859519118,0.6310546,103700.0,103690.0,0.21225012]
[1746859519322,0.6310546,103700.0,103690.0,0.37825012]
[1746859519514,0.223435,103700.0,103690.0,0.93190372]
[1746859520515,0.223435,103700.0,103690.0,1.05974372]
[1746859523425,0.223435,103700.0,103690.0,1.05674372]
[1746859524725,0.2702546,103700.0,103690.0,1.05674372]
[1746859525926,0.2702546,103700.0,103690.0,0.92890372]
[1746859526316,0.3340546,103700.0,103690.0,0.92890372]